{"text_format":"1","workbook":"xlsx","n_sheets":4,"sheets":["Välkommen","Svarsmall","Resultat","calculation"],"not_rendered":{"charts":0,"images":2,"macros":1,"external_links":0,"defined_names":3,"comments":1,"pivot_tables":0},"unopened":[],"bounds":{"document_bytes":16777216,"sheet_cells":100000,"rows_first":2000,"rows_last":500,"rows_between":2000,"halvings":0,"cell_chars":16384,"cell_head_chars":4096},"cells_cut":0,"cells_raw":0,"read":"whole","date_system":"1900"}

{"sheet":"Välkommen","index":0,"n_rows":32,"n_cols":11,"rows_kept":32,"cut":false,"hidden":false,"merged":[[29,4,29,6],[30,10,30,11],[31,4,31,6]]}
[]
[]
[]
[]
[]
[]
[]
[]
[]
[]
[]
[]
[]
[]
[]
[]
[]
[]
[]
[]
[]
[]
[]
[]
[]
[]
[]
[null,"Företagsuppgifter"]
[]
[null,"Namn"]
[null,null,null,null,null,null,null,null,null,null,"Starta här"]
[null,"Organisationsnummer"]

{"sheet":"Svarsmall","index":1,"n_rows":35,"n_cols":6,"rows_kept":35,"cut":false,"hidden":false,"merged":[]}
[]
[]
[]
[]
[]
[]
[]
[]
[]
[null,"STEG1","Svar","Egna anteckningar",null,"svar"]
[null,"Har ni fördelat ansvaret för energifrågor i er organisation?","svar"]
[null,"Vet ni vilka lagar och andra krav som berör er inom energiområdet?","svar"]
[null,"Vet ni hur stor er energianvändning är?","svar"]
[null,"Gör ni något för att spara energi?","svar"]
[]
[null,"STEG2","Svar","Egna anteckningar"]
[null,"Är företagsledningen involverad i energiarbetet? ","svar"]
[null,"Har ni dokumenterade och beslutade energimål?","svar"]
[null,"Har ni utsett en energiansvarig i företaget?","svar"]
[null,"Följer ni upp lagefterlevnad?","svar"]
[null,"Har ni möjlighet att få ut statistik över er energianvändning?","svar"]
[null,"Har ni verifierat vilka processer och vilken utrustning i er verksamhet som använder mest energi?","svar"]
[]
[null,"STEG3","Svar","Egna anteckningar"]
[null,"Har ni en energipolicy som är fastställd av ledningen? ","svar"]
[null,"Har den energiansvarige en grupp med andra nyckelpersoner kopplad till sig?","svar"]
[null,"Använder ni er av energirelaterade nyckeltal?","svar"]
[null,"Har ni tagit fram en handlingsplan för energieffektiviseringarbete?","svar"]
[]
[null,"STEG4","Svar","Egna anteckningar"]
[null,"Har ni en organisation för energiarbetet som inkluderar olika personalgrupper?","svar"]
[null,"Följer ni löpande upp handlingsplanen och resultatet av genomförda åtgärder?","svar"]
[null,"Har ni en process i organisationen som låter intresserad personal delta och bidra i arbetet med att minska energianvändningen?","svar"]
[null,"Revideras rutiner kopplade till energiarbetet regelbundet?","svar"]
[null,"Genomför ni intern revision av ert energiarbete?","svar"]

{"sheet":"Resultat","index":2,"n_rows":12,"n_cols":26,"rows_kept":12,"cut":false,"hidden":false,"merged":[[9,1,9,4],[9,9,23,15],[11,2,25,6],[3,24,3,28],[5,17,5,20],[5,25,19,30],[7,8,7,13],[7,18,21,22]]}
[]
[]
[]
[null,null,null,null,null,null,null,null,null,null,null,null,null,null,null,null,null,null,null,null,null,null,null,null,"STEG 4"]
[]
[null,null,null,null,null,null,null,null,null,null,null,null,null,null,null,null,null,"STEG 3",null,null,null,null,null,null,null,"\n"]
[]
[null,null,null,null,null,null,null,null,"STEG 2",null,null,null,null,null,null,null,null,null,"\n"]
[]
[null,"STEG 1",null,null,null,null,null,null,null,"\n"]
[]
[null,null,"\n Kvarstående frågor:\n Har ni fördelat ansvaret för energifrågor i er organisation?\n  Vet ni vilka lagar och andra krav som berör er inom energiområdet?\n  Vet ni hur stor er energianvändning är?\n  Gör ni något för att spara energi?\n"]

{"sheet":"calculation","index":3,"n_rows":30,"n_cols":17,"rows_kept":30,"cut":false,"hidden":true,"merged":[]}
[null,"SVAR","Text - OK","Text - kvar","Markering:",{"$f":"IF(B6<5,B6,IF(B15<12,B15,IF(B22<17,B22,B30)))","v":1}]
["Steg1",{"$f":"COUNTIF(Svarsmall!C11,\"Ja\")","v":0},"Har ni fördelat ansvaret för energifrågor i er organisation?","Har ni fördelat ansvaret för energifrågor i er organisation?"]
["Pil 1-5",{"$f":"COUNTIF(Svarsmall!C12,\"Ja\")","v":0},"Vet ni vilka lagar och andra krav som berör er inom energiområdet?","Vet ni vilka lagar och andra krav som berör er inom energiområdet?"]
[null,{"$f":"COUNTIF(Svarsmall!C13,\"Ja\")","v":0},"Vet ni hur stor er energianvändning är?","Vet ni hur stor er energianvändning är?"]
[null,{"$f":"COUNTIF(Svarsmall!C14,\"Ja\")","v":0},"Gör ni något för att spara energi?","Gör ni något för att spara energi?"]
["Summa",{"$f":"SUM(B2:B5)+1","v":1},"Steg 1 är helt klart"]
[]
[]
["Steg2",{"$f":"COUNTIF(Svarsmall!C17,\"Ja\")","v":0},"Är företagsledningen involverad i energiarbetet? ","Är företagsledningen involverad i energiarbetet? "]
["Pil 6-10",{"$f":"COUNTIF(Svarsmall!C18,\"Ja\")","v":0},"Har ni dokumenterade och beslutade energimål?","Har ni dokumenterade och beslutade energimål?"]
[null,{"$f":"COUNTIF(Svarsmall!C19,\"Ja\")","v":0},"Har ni utsett en energiansvarig i företaget?","Har ni utsett en energiansvarig i företaget?"]
[null,{"$f":"COUNTIF(Svarsmall!C20,\"Ja\")","v":0},"Förljer ni upp lagefterlevnaden?","Förljer ni upp lagefterlevnaden?"]
[null,{"$f":"COUNTIF(Svarsmall!C21,\"Ja\")","v":0},"Har ni möjlighet att få ut statistik över er energianvändning?","Har ni möjlighet att få ut statistik över er energianvändning?"]
[null,{"$f":"COUNTIF(Svarsmall!C22,\"Ja\")","v":0},"Har ni verifierat vilka processer och vilken utrustning i er verksamhet som använder mest energi?","Har ni verifierat vilka processer och vilken utrustning i er verksamhet som använder mest energi?"]
["Summa",{"$f":"SUM(B9:B14)+B6+1","v":2},"Steg 2 är helt klar"]
[]
[null,null,null,null,null,null,null,null,null,null,null,null,null,null,null,null,"Steg 3 är helt klar\n"]
["Steg3",{"$f":"COUNTIF(Svarsmall!C25,\"Ja\")","v":0},"Har ni en energipolicy som är fastställd av ledningen? ","Har ni en energipolicy som är fastställd av ledningen? "]
["Pil 11-15",{"$f":"COUNTIF(Svarsmall!C26,\"Ja\")","v":0},"Har den energiansvarige en grupp med andra nyckelpersoner kopplad till sig?","Har den energiansvarige en grupp med andra nyckelpersoner kopplad till sig?"]
[null,{"$f":"COUNTIF(Svarsmall!C27,\"Ja\")","v":0},"Använder ni er av energirelaterade nyckeltal?","Använder ni er av energirelaterade nyckeltal?"]
[null,{"$f":"COUNTIF(Svarsmall!C28,\"Ja\")","v":0},"Har ni tagit fram en handlingsplan för energieffektiviseringarbete?","Har ni tagit fram en handlingsplan för energieffektiviseringarbete?"]
["Summa",{"$f":"SUM(B18:B21)+B15+1","v":3},"Steg 3 är helt klar"]
[]
[]
["Steg4",{"$f":"COUNTIF(Svarsmall!C31,\"Ja\")","v":0},"Har ni en organisation för energiarbetet som inkluderar olika personalgrupper?","Har ni en organisation för energiarbetet som inkluderar olika personalgrupper?"]
["Pil 16-20",{"$f":"COUNTIF(Svarsmall!C32,\"Ja\")","v":0},"Följer ni löpande upp handlingsplanen och resultatet av genomförda åtgärder?","Följer ni löpande upp handlingsplanen och resultatet av genomförda åtgärder?"]
[null,{"$f":"COUNTIF(Svarsmall!C33,\"Ja\")","v":0},"Har ni en process i organisationen som låter intresserad personal delta och bidra i arbetet med att minska energianvändningen?","Har ni en process i organisationen som låter intresserad personal delta och bidra i arbetet med att minska energianvändningen?"]
[null,{"$f":"COUNTIF(Svarsmall!C34,\"Ja\")","v":0},"Revideras rutiner kopplade till energiarbetet regelbundet?","Revideras rutiner kopplade till energiarbetet regelbundet?"]
[null,{"$f":"COUNTIF(Svarsmall!C35,\"Ja\")","v":0},"Genomför ni intern revision av ert energiarbete?","Genomför ni intern revision av ert energiarbete?"]
["Summa",{"$f":"SUM(B25:B29)+B22+1","v":4},"Steg 4 är helt klar"]